fUSD/lending_fUSD_20250201
["ID","MTS","AMOUNT","RATE_DAILY","PERIOD"]
[351194742,1738407031972,-150.0,0.00013843,2]
[351194743,1738407031981,-150.0,0.00014102,2]
[351194744,1738407031990,-150.0,0.000143,2]
[351194745,1738407031999,-150.0,0.00014314,2]
[351194746,1738407032009,-150.0,0.00014369,2]
[351194747,1738407032018,-150.0,0.00014426,2]
[351194748,1738407032027,-150.0,0.00014453,2]
[351194749,1738407032036,-332.31,0.0001448,2]
[351194750,1738407032045,-340.93,0.00014483,2]
[351194751,1738407032054,-500.0,0.00014484,2]
[351194752,1738407032063,-1852.42,0.00014491,2]
[351194753,1738407032073,-865.0,0.00014493,2]
[351194754,1738407032083,-150.99,0.00014504,2]
[351194755,1738407032092,-4380.3,0.00014504,2]
[351194756,1738407032102,-16646.06,0.00014504,2]
[351194757,1738407032111,-150.99,0.00014504,2]
[351194758,1738407032120,-931.79,0.00014504,2]
[351194759,1738407032131,-299.99,0.00014504,2]
[351194760,1738407032142,-999.99,0.00014504,2]
[351194761,1738407032151,-9999.99,0.00014504,2]
[351194762,1738407032162,-499.99,0.00014504,2]
[351194763,1738407032183,-9999.99,0.00014504,2]
[351194764,1738407032192,-9999.99,0.00014504,2]
[351194765,1738407032203,-1000.0,0.00014655,2]
[351194766,1738407032212,-158398.26565537,0.0001472,2]
[351194772,1738407037427,-509.7,0.0001472,2]
[351194773,1738407037534,-648.16906954,0.0001472,2]
[351194774,1738407037694,-518.9007186,0.0001472,2]
[351194777,1738407039688,-24809.400002,0.0001472,2]
[351194801,1738407042598,-22805.672548,0.0001472,2]
[351194802,1738407042704,-18786.74139153,0.0001472,2]
[351194803,1738407042764,-10199.1454505,0.0001472,2]
[351194818,1738407045587,-105339.17810609,0.0001472,2]
[351194819,1738407096500,158.38,0.00010137,2]
[351194822,1738407270903,150.0,0.00022724,120]
[351194828,1738407929743,150.0,0.000182,60]
[351194830,1738408013808,166.88,0.00010137,2]
[351194841,1738408231839,-634.62,0.00012981,2]
[351194842,1738408231849,-508.01035079,0.00013,2]
[351194843,1738408231892,-41.98964921,0.00013,2]
[351194844,1738408231902,-411.0,0.00014438,2]
[351194845,1738408231913,-47.01035079,0.000145,2]
[351194846,1738408231948,-913.69214021,0.000145,2]
[351194847,1738408231958,-3000.0,0.0001457,2]
[351194848,1738408231967,-250.0,0.00014637,2]
[351194849,1738408231977,-150.0,0.00014654,2]
[351194850,1738408231986,-172.42,0.00014677,2]
[351194851,1738408231996,-614.89,0.00014682,2]
[351194852,1738408232005,-181.0,0.00014687,2]
[351194853,1738408232015,-2509.02,0.00014719,2]
[351194854,1738408232026,-1315.89,0.00014719,2]
[351194855,1738408232036,-150.99,0.00014719,2]
[351194856,1738408232046,-999.99,0.0001472,2]
[351194857,1738408232055,-1000.0,0.00014741,2]
[351194858,1738408232065,-387.37,0.00014801,2]
[351194859,1738408232075,-1500.0,0.0001487,2]
[351194860,1738408232086,-11110.33665531,0.00014899,2]
[351194885,1738408237593,-12789.66334469,0.00014899,2]
[351194886,1738408237602,-500.0,0.00014936,2]
[351194887,1738408237611,-600.0,0.00015,2]
[351194888,1738408237620,-150.59,0.00015,2]
[351194889,1738408237630,-273.18,0.00015171,2]
[351194890,1738408237640,-634.62,0.00015244,2]
[351194891,1738408237649,-150.0,0.00015309,2]
[351194892,1738408237659,-48503.6321244,0.0001531,2]
[351194893,1738408237668,-175.63,0.00015345,2]
[351194894,1738408237678,-300.0,0.000155,5]
[351194895,1738408237687,-1403.61059227,0.0001555,2]
[351194896,1738408237697,-600.0,0.000156,5]
[351194897,1738408237706,-900.0,0.000157,5]
[351194898,1738408237715,-1200.0,0.000158,5]
[351194899,1738408237725,-181.0,0.000159,2]
[351194900,1738408237735,-1500.0,0.000159,5]
[351194901,1738408237743,-754.71798917,0.000159,2]
[351194902,1738408237753,-774.41,0.00015918,2]
[351194903,1738408237763,-439.26,0.00015918,2]
[351194904,1738408237774,-439.26,0.00015918,2]
[351194905,1738408237786,-774.41,0.00015918,2]
[351194906,1738408237801,-439.26,0.00015918,2]
[351194907,1738408237812,-774.41,0.00015918,2]
[351194908,1738408237822,-411.01,0.00015918,2]
[351194909,1738408237831,-774.41,0.00015918,2]
[351194910,1738408237839,-774.41,0.00015918,2]
[351194911,1738408237849,-773.03,0.00015918,2]
[351194912,1738408237858,-22552.23926358,0.00016,2]
[351194914,1738408237871,-5000.0,0.00016,2]
[351194916,1738408237880,-754.71798917,0.00016003,2]
[351194917,1738408237889,-150.0,0.00016082,2]
[351194919,1738408237898,-2679.0,0.000161,2]
[351194921,1738408237908,-754.71798917,0.00016107,2]
[351194924,1738408237919,-2127.03,0.00016116,2]
[351194925,1738408237927,-754.71798917,0.0001621,2]
[351194927,1738408237936,-6501.98485674,0.00016237,2]
[351194929,1738408237946,-754.71798917,0.00016314,2]
[351194932,1738408237958,-500.0,0.00016317,2]
[351194934,1738408237968,-9129.8543,0.00016317,2]
[351194936,1738408237977,-6501.9848567,0.00016324,2]
[351194938,1738408237987,-174.1418721,0.00016336,2]
[351194939,1738408237997,-197.34499344,0.00016337,2]
[351194941,1738408238006,-5000.0,0.00016337,2]
[351194943,1738408238015,-648.42374347,0.00016338,2]
[351194945,1738408238024,-7523.01697116,0.00016338,2]
[351194947,1738408238033,-170.60113214,0.00016338,2]
[351194949,1738408238043,-250.0,0.000164,2]
[351194951,1738408238052,-250.0,0.000164,2]
[351194953,1738408238061,-250.0,0.000164,2]
[351194955,1738408238071,-308.2,0.000164,2]
[351194957,1738408238079,-291.93,0.00016407,2]
[351194959,1738408238088,-28025.0,0.00016411,2]
[351194961,1738408238098,-5604.0,0.00016411,2]
[351194963,1738408238107,-6501.9848567,0.00016412,2]
[351194965,1738408238116,-151.0,0.00016417,2]
[351194967,1738408238124,-151.0,0.00016417,2]
[351194988,1738408238305,-151.0,0.00016417,2]
[351194990,1738408238314,-151.0,0.00016417,2]
[351194992,1738408238323,-153.968523,0.00016417,2]
[351194994,1738408238332,-49604.03562382,0.00016417,2]
[351194996,1738408238341,-754.71798917,0.00016417,2]
[351194998,1738408238351,-1359.5131341,0.00016421,2]
[351195000,1738408238360,-1000.0,0.00016436,2]
[351195002,1738408238369,-1055.63718932,0.00016437,2]
[351195004,1738408238378,-500.0,0.00016437,2]
[351195006,1738408238387,-283.78119716,0.00016437,2]
[351195008,1738408238397,-221.59744793,0.00016437,2]
[351195009,1738408238406,-500.0,0.00016437,2]
[351195011,1738408238415,-417.10444503,0.00016437,2]
[351195013,1738408238423,-1000.0,0.00016437,2]
[351195015,1738408238432,-209.666355,0.00016437,2]
[351195017,1738408238442,-272.627502,0.00016437,2]
[351195019,1738408238451,-272.627502,0.00016437,2]
[351195021,1738408238460,-151.0,0.00016437,2]
[351195023,1738408238469,-151.0,0.00016437,2]
[351195025,1738408238479,-151.0,0.00016437,2]
[351195027,1738408238488,-151.0,0.00016437,2]
[351195029,1738408238497,-151.0,0.00016437,2]
[351195031,1738408238506,-151.0,0.00016437,2]
[351195033,1738408238514,-151.0,0.00016437,2]
[351195035,1738408238523,-500.0,0.00016437,2]
[351195037,1738408238533,-315.46351,0.00016437,2]
[351195039,1738408238542,-315.46351,0.00016437,2]
[351195041,1738408238552,-151.0,0.00016437,2]
[351195043,1738408238561,-151.0,0.00016437,2]
[351195045,1738408238571,-151.0,0.00016437,2]
[351195047,1738408238580,-151.0,0.00016437,2]
[351195049,1738408238589,-151.0,0.00016437,2]
[351195051,1738408238599,-832.737638,0.00016437,2]
[351195053,1738408238608,-832.737638,0.00016437,2]
[351195055,1738408238617,-151.0,0.00016437,2]
[351195057,1738408238628,-151.0,0.00016437,2]
[351195059,1738408238637,-200.497692,0.00016437,2]
[351195061,1738408238646,-200.497692,0.00016437,2]
[351195063,1738408238655,-151.0,0.00016437,2]
[351195065,1738408238665,-151.0,0.00016437,2]
[351195067,1738408238674,-151.0,0.00016437,2]
[351195069,1738408238685,-195.440383,0.00016437,2]
[351195071,1738408238694,-204.786436,0.00016437,2]
[351195073,1738408238703,-195.440383,0.00016437,2]
[351195075,1738408238712,-204.786436,0.00016437,2]
[351195077,1738408238720,-296.0,0.00016437,2]
[351195079,1738408238729,-2171.0,0.00016438,2]
[351195081,1738408238739,-2963729.73961711,0.00016438,2]
[351195083,1738408238750,-151.0,0.00016438,2]
[351195085,1738408238759,-151.0,0.00016438,2]
[351195087,1738408238769,-151.0,0.00016438,2]
[351195089,1738408238779,-151.0,0.00016438,2]
[351195091,1738408238789,-151.0,0.00016438,2]
[351195093,1738408238799,-151.0,0.00016438,2]
[351195095,1738408238810,-151.0,0.00016438,2]
[351195097,1738408238819,-168.940494,0.00016438,2]
[351195099,1738408238829,-151.0,0.00016438,2]
[351195101,1738408238838,-151.0,0.00016438,2]
[351195103,1738408238848,-232.59457,0.00016438,2]
[351195105,1738408238858,-501.82056984,0.00016438,2]
[351195107,1738408238869,-500.0,0.00016438,2]
[351195109,1738408238880,-151.0,0.00016438,2]
[351195111,1738408238889,-151.0,0.00016438,2]
[351195113,1738408238899,-151.0,0.00016438,2]
[351195115,1738408238908,-152.397925,0.00016438,2]
[351195117,1738408238918,-151.0,0.00016438,2]
[351195119,1738408238927,-199.227395,0.00016438,2]
[351195121,1738408238937,-502.37674997,0.00016438,2]
[351195123,1738408238948,-512.12091804,0.00016438,2]
[351195125,1738408238958,-519.27399226,0.00016438,2]
[351195127,1738408238967,-500.0,0.00016438,2]
[351195129,1738408238977,-500.0,0.00016438,2]
[351195131,1738408238986,-151.0,0.00016438,2]
[351195133,1738408238996,-151.0,0.00016438,2]
[351195135,1738408239006,-151.0,0.00016438,2]
[351195137,1738408239015,-151.0,0.00016438,2]
[351195139,1738408239025,-151.0,0.00016438,2]
[351195141,1738408239036,-151.0,0.00016438,2]
[351195143,1738408239046,-151.0,0.00016438,2]
[351195145,1738408239056,-292.39,0.00016438,2]
[351195147,1738408239069,-206.19691942,0.00016438,2]
[351195149,1738408239080,-3094.97650738,0.00016438,2]
[351195151,1738408239090,-168.58,0.00016438,2]
[351195153,1738408239100,-500.0,0.00016438,2]
[351195155,1738408239110,-500.0,0.00016438,2]
[351195157,1738408239119,-300.0,0.00016438,2]
[351195159,1738408239129,-151.0,0.00016438,2]
[351195161,1738408239139,-151.0,0.00016438,2]
[351195163,1738408239148,-188.69739,0.00016438,2]
[351195165,1738408239157,-331.11928212,0.00016438,2]
[351195167,1738408239166,-500.0,0.00016438,2]
[351195169,1738408239175,-500.0,0.00016438,2]
[351195171,1738408239184,-162.963904,0.00016438,2]
[351195173,1738408239193,-162.963904,0.00016438,2]
[351195175,1738408239203,-162.963904,0.00016438,2]
[351195177,1738408239213,-162.963904,0.00016438,2]
[351195179,1738408239222,-162.963904,0.00016438,2]
[351195181,1738408239233,-151.0,0.00016438,2]
[351195183,1738408239242,-162.963904,0.00016438,2]
[351195185,1738408239251,-151.0,0.00016438,2]
[351195187,1738408239260,-162.963904,0.00016438,2]
[351195189,1738408239269,-151.0,0.00016438,2]
[351195191,1738408239279,-151.0,0.00016438,2]
[351195193,1738408239289,-151.0,0.00016438,2]
[351195195,1738408239305,-151.0,0.00016438,2]
[351195198,1738408239316,-151.0,0.00016438,2]
[351195199,1738408239326,-162.963904,0.00016438,2]
[351195201,1738408239335,-162.963904,0.00016438,2]
[351195203,1738408239345,-162.963904,0.00016438,2]
[351195206,1738408239358,-162.963904,0.00016438,2]
[351195208,1738408239368,-162.963904,0.00016438,2]
[351195210,1738408239381,-162.963904,0.00016438,2]
[351195212,1738408239394,-162.963904,0.00016438,2]
[351195214,1738408239403,-500.0,0.00016438,2]
[351195216,1738408239412,-500.0,0.00016438,2]
[351195218,1738408239422,-183.091002,0.00016438,2]
[351195220,1738408239431,-500.0,0.00016438,2]
[351195222,1738408239441,-500.0,0.00016438,2]
[351195224,1738408239450,-500.0,0.00016438,2]
[351195226,1738408239460,-500.0,0.00016438,2]
[351195229,1738408239469,-500.0,0.00016438,2]
[351195230,1738408239478,-500.0,0.00016438,2]
[351195233,1738408239489,-581.97853616,0.00016438,2]
[351195235,1738408239498,-500.0,0.00016438,2]
[351195237,1738408239507,-500.0,0.00016438,2]
[351195239,1738408239517,-500.0,0.00016438,2]
[351195241,1738408239527,-500.0,0.00016438,2]
[351195243,1738408239537,-500.0,0.00016438,2]
[351195245,1738408239546,-647.5,0.00016438,2]
[351195247,1738408239556,-500.0,0.00016438,2]
[351195249,1738408239566,-500.0,0.00016438,2]
[351195251,1738408239575,-283.89235098,0.00016438,2]
[351195253,1738408239585,-530.39491308,0.00016438,2]
[351195255,1738408239594,-500.0,0.00016438,2]
[351195258,1738408239603,-500.0,0.00016438,2]
[351195260,1738408239613,-436.253061,0.00016438,2]
[351195262,1738408239622,-436.253061,0.00016438,2]
[351195264,1738408239631,-436.253061,0.00016438,2]
[351195266,1738408239640,-436.253061,0.00016438,2]
[351195267,1738408239649,-436.253061,0.00016438,2]
[351195269,1738408239658,-436.253061,0.00016438,2]
[351195271,1738408239667,-436.253061,0.00016438,2]
[351195273,1738408239676,-500.0,0.00016438,2]
[351195275,1738408239685,-436.253061,0.00016438,2]
[351195277,1738408239695,-436.253061,0.00016438,2]
[351195279,1738408239704,-436.253061,0.00016438,2]
[351195281,1738408239713,-436.253061,0.00016438,2]
[351195283,1738408239722,-436.253061,0.00016438,2]
[351195285,1738408239732,-436.253061,0.00016438,2]
[351195287,1738408239742,-436.253061,0.00016438,2]
[351195289,1738408239751,-500.0,0.00016438,2]
[351195291,1738408239760,-506.45664,0.00016438,2]
[351195293,1738408239769,-500.0,0.00016438,2]
[351195295,1738408239779,-500.0,0.00016438,2]
[351195297,1738408239788,-500.0,0.00016438,2]
[351195299,1738408239797,-151.0,0.00016438,2]
[351195301,1738408239806,-151.0,0.00016438,2]
[351195303,1738408239816,-151.0,0.00016438,2]
[351195305,1738408239825,-157.590054,0.00016438,2]
[351195307,1738408239834,-500.0,0.00016438,2]
[351195309,1738408239843,-151.206476,0.00016438,2]
[351195311,1738408239852,-550.78,0.00016438,2]
[351195313,1738408239862,-151.0,0.00016438,2]
[351195315,1738408239874,-151.0,0.00016438,2]
[351195317,1738408239884,-151.0,0.00016438,2]
[351195319,1738408239893,-151.0,0.00016438,2]
[351195321,1738408239902,-151.0,0.00016438,2]
[351195323,1738408239913,-151.0,0.00016438,2]
[351195325,1738408239922,-221.034484,0.00016438,2]
[351195327,1738408239930,-500.0,0.00016438,2]
[351195329,1738408239942,-502.63541482,0.00016438,2]
[351195331,1738408239952,-500.0,0.00016438,2]
[351195333,1738408239961,-401.32516736,0.00016438,2]
[351195335,1738408239971,-272.627502,0.00016438,2]
[351195337,1738408239980,-272.627502,0.00016438,2]
[351195339,1738408239989,-272.627502,0.00016438,2]
[351195341,1738408239998,-272.627502,0.00016438,2]
[351195342,1738408240007,-272.627502,0.00016438,2]
[351195344,1738408240017,-272.627502,0.00016438,2]
[351195346,1738408240026,-272.627502,0.00016438,2]
[351195348,1738408240035,-272.627502,0.00016438,2]
[351195350,1738408240044,-500.0,0.00016438,2]
[351195352,1738408240054,-272.627502,0.00016438,2]
[351195354,1738408240063,-272.627502,0.00016438,2]
[351195356,1738408240072,-500.0,0.00016438,2]
[351195358,1738408240081,-500.0,0.00016438,2]
[351195360,1738408240090,-272.627502,0.00016438,2]
[351195362,1738408240100,-272.627502,0.00016438,2]
[351195364,1738408240109,-500.0,0.00016438,2]
[351195366,1738408240118,-500.0,0.00016438,2]
[351195368,1738408240128,-500.0,0.00016438,2]
[351195370,1738408240137,-500.0,0.00016438,2]
[351195372,1738408240147,-500.0,0.00016438,2]
[351195374,1738408240157,-500.0,0.00016438,2]
[351195375,1738408240166,-199.749162,0.00016438,2]
[351195376,1738408240175,-505.21142942,0.00016438,2]
[351195377,1738408240184,-500.0,0.00016438,2]
[351195378,1738408240193,-335.951524,0.00016438,2]
[351195379,1738408240203,-158.850771,0.00016438,2]
[351195380,1738408240212,-537.76964405,0.00016438,2]
[351195381,1738408240221,-500.0,0.00016438,2]
[351195382,1738408240231,-500.0,0.00016438,2]
[351195383,1738408240240,-500.0,0.00016438,2]
[351195384,1738408240249,-470.78133737,0.00016438,2]
[351195386,1738408240258,-500.0,0.00016438,2]
[351195388,1738408240267,-500.0,0.00016438,2]
[351195390,1738408240276,-500.0,0.00016438,2]
[351195392,1738408240286,-155.129208,0.00016438,2]
[351195394,1738408240295,-500.0,0.00016438,2]
[351195396,1738408240306,-500.0,0.00016438,2]
[351195398,1738408240315,-500.0,0.00016438,2]
[351195400,1738408240324,-500.0,0.00016438,2]
[351195402,1738408240334,-500.0,0.00016438,2]
[351195404,1738408240343,-500.0,0.00016438,2]
[351195406,1738408240352,-500.0,0.00016438,2]
[351195408,1738408240362,-500.0,0.00016438,2]
[351195410,1738408240371,-500.0,0.00016438,2]
[351195412,1738408240380,-511.3411309,0.00016438,2]
[351195414,1738408240390,-517.2033731,0.00016438,2]
[351195416,1738408240399,-500.0,0.00016438,2]
[351195418,1738408240407,-500.0,0.00016438,2]
[351195420,1738408240417,-500.0,0.00016438,2]
[351195422,1738408240426,-500.0,0.00016438,2]
[351195424,1738408240435,-500.0,0.00016438,2]
[351195426,1738408240444,-151.0,0.00016438,2]
[351195428,1738408240453,-500.0,0.00016438,2]
[351195430,1738408240462,-151.0,0.00016438,2]
[351195432,1738408240471,-151.0,0.00016438,2]
[351195434,1738408240481,-151.0,0.00016438,2]
[351195436,1738408240491,-151.0,0.00016438,2]
[351195438,1738408240500,-151.0,0.00016438,2]
[351195440,1738408240509,-151.0,0.00016438,2]
[351195442,1738408240518,-151.0,0.00016438,2]
[351195444,1738408240529,-508.47099298,0.00016438,2]
[351195446,1738408240538,-500.0,0.00016438,2]
[351195448,1738408240547,-151.0,0.00016438,2]
[351195450,1738408240557,-151.0,0.00016438,2]
[351195452,1738408240566,-500.0,0.00016438,2]
[351195454,1738408240578,-500.0,0.00016438,2]
[351195456,1738408240587,-151.0,0.00016438,2]
[351195458,1738408240597,-500.0,0.00016438,2]
[351195460,1738408240606,-270.378789,0.00016438,2]
[351195462,1738408240615,-500.0,0.00016438,2]
[351195464,1738408240625,-516.35665267,0.00016438,2]
[351195466,1738408240635,-500.0,0.00016438,2]
[351195468,1738408240644,-500.0,0.00016438,2]
[351195470,1738408240654,-633.75,0.00016438,2]
[351195472,1738408240663,-500.0,0.00016438,2]
[351195474,1738408240672,-500.0,0.00016438,2]
[351195476,1738408240681,-500.0,0.00016438,2]
[351195478,1738408240691,-500.0,0.00016438,2]
[351195480,1738408240700,-500.0,0.00016438,2]
[351195482,1738408240709,-500.0,0.00016438,2]
[351195484,1738408240718,-593.32777739,0.00016438,2]
[351195486,1738408240728,-500.0,0.00016438,2]
[351195488,1738408240737,-500.0,0.00016438,2]
[351195490,1738408240746,-387.72402143,0.00016438,2]
[351195493,1738408240756,-500.0,0.00016438,2]
[351195494,1738408240765,-500.0,0.00016438,2]
[351195496,1738408240774,-500.0,0.00016438,2]
[351195498,1738408240784,-500.0,0.00016438,2]
[351195500,1738408240793,-310.8351313,0.00016438,2]
[351195502,1738408240803,-329.308917,0.00016438,2]
[351195504,1738408240812,-500.0,0.00016438,2]
[351195506,1738408240821,-500.0,0.00016438,2]
[351195508,1738408240830,-500.0,0.00016438,2]
[351195510,1738408240840,-500.0,0.00016438,2]
[351195512,1738408240848,-500.0,0.00016438,2]
[351195514,1738408240858,-500.0,0.00016438,2]
[351195516,1738408240872,-500.0,0.00016438,2]
[351195518,1738408240881,-500.0,0.00016438,2]
[351195520,1738408240891,-500.0,0.00016438,2]
[351195522,1738408240901,-500.0,0.00016438,2]
[351195524,1738408240911,-500.0,0.00016438,2]
[351195526,1738408240920,-500.0,0.00016438,2]
[351195528,1738408240929,-500.0,0.00016438,2]
[351195530,1738408240939,-500.0,0.00016438,2]
[351195532,1738408240948,-500.0,0.00016438,2]
[351195534,1738408240958,-500.0,0.00016438,2]
[351195536,1738408240967,-500.0,0.00016438,2]
[351195538,1738408240977,-534.92840281,0.00016438,2]
[351195540,1738408240986,-500.0,0.00016438,2]
[351195542,1738408240995,-200.012786,0.00016438,2]
[351195544,1738408241005,-500.0,0.00016438,2]
[351195546,1738408241014,-500.0,0.00016438,2]
[351195548,1738408241023,-500.84077453,0.00016438,2]
[351195550,1738408241033,-500.0,0.00016438,2]
[351195552,1738408241043,-151.0,0.00016438,2]
[351195554,1738408241052,-151.0,0.00016438,2]
[351195555,1738408241062,-500.0,0.00016438,2]
[351195557,1738408241073,-151.0,0.00016438,2]
[351195559,1738408241082,-151.0,0.00016438,2]
[351195561,1738408241092,-151.0,0.00016438,2]
[351195563,1738408241101,-151.0,0.00016438,2]
[351195565,1738408241111,-187.977627,0.00016438,2]
[351195567,1738408241121,-602.5,0.00016438,2]
[351195569,1738408241130,-500.0,0.00016438,2]
[351195571,1738408241139,-500.0,0.00016438,2]
[351195573,1738408241149,-500.0,0.00016438,2]
[351195575,1738408241158,-500.0,0.00016438,2]
[351195577,1738408241167,-500.0,0.00016438,2]
[351195579,1738408241177,-500.0,0.00016438,2]
[351195581,1738408241186,-184.96056218,0.00016438,2]
[351195583,1738408241195,-500.0,0.00016438,2]
[351195585,1738408241204,-516.34,0.00016438,2]
[351195587,1738408241213,-500.0,0.00016438,2]
[351195589,1738408241223,-500.0,0.00016438,2]
[351195591,1738408241232,-500.0,0.00016438,2]
[351195593,1738408241241,-151.0,0.00016438,2]
[351195595,1738408241251,-151.0,0.00016438,2]
[351195597,1738408241259,-500.0,0.00016438,2]
[351195599,1738408241269,-500.0,0.00016438,2]
[351195601,1738408241278,-617.8,0.00016438,2]
[351195603,1738408241287,-500.0,0.00016438,2]
[351195605,1738408241297,-500.0,0.00016438,2]
[351195609,1738408241443,-504.83478462,0.00016438,2]
[351195611,1738408241453,-200.0,0.00016438,2]
[351195613,1738408241462,-512.71970241,0.00016438,2]
[351195614,1738408241472,-500.0,0.00016438,2]
[351195615,1738408241481,-500.0,0.00016438,2]
[351195616,1738408241491,-500.0,0.00016438,2]
[351195617,1738408241500,-500.0,0.00016438,2]
[351195618,1738408241510,-500.0,0.00016438,2]
[351195619,1738408241519,-517.2987728,0.00016438,2]
[351195621,1738408241528,-500.0,0.00016438,2]
[351195623,1738408241538,-500.0,0.00016438,2]
[351195625,1738408241547,-267.919558,0.00016438,2]
[351195627,1738408241556,-500.0,0.00016438,2]
[351195629,1738408241566,-500.0,0.00016438,2]
[351195631,1738408241575,-500.0,0.00016438,2]
[351195633,1738408241584,-500.0,0.00016438,2]
[351195635,1738408241594,-596.68562136,0.00016438,2]
[351195637,1738408241603,-500.0,0.00016438,2]
[351195639,1738408241613,-500.0,0.00016438,2]
[351195641,1738408241621,-500.0,0.00016438,2]
[351195643,1738408241631,-500.0,0.00016438,2]
[351195645,1738408241640,-500.0,0.00016438,2]
[351195647,1738408241649,-500.0,0.00016438,2]
[351195649,1738408241659,-500.0,0.00016438,2]
[351195651,1738408241668,-500.0,0.00016438,2]
[351195653,1738408241678,-500.0,0.00016438,2]
[351195655,1738408241687,-500.0,0.00016438,2]
[351195656,1738408241698,-500.0,0.00016438,2]
[351195659,1738408241708,-500.0,0.00016438,2]
[351195660,1738408241717,-559.16,0.00016438,2]
[351195662,1738408241726,-151.0,0.00016438,2]
[351195664,1738408241735,-500.0,0.00016438,2]
[351195666,1738408241743,-151.0,0.00016438,2]
[351195668,1738408241752,-151.0,0.00016438,2]
[351195670,1738408241762,-151.0,0.00016438,2]
[351195672,1738408241771,-151.0,0.00016438,2]
[351195674,1738408241781,-177.276735,0.00016438,2]
[351195676,1738408241790,-500.0,0.00016438,2]
[351195678,1738408241799,-500.0,0.00016438,2]
[351195680,1738408241809,-500.0,0.00016438,2]
[351195682,1738408241818,-500.0,0.00016438,2]
[351195684,1738408241827,-500.0,0.00016438,2]
[351195686,1738408241836,-500.0,0.00016438,2]
[351195688,1738408241846,-151.0,0.00016438,2]
[351195690,1738408241855,-315.46351,0.00016438,2]
[351195692,1738408241864,-151.0,0.00016438,2]
[351195694,1738408241876,-500.0,0.00016438,2]
[351195696,1738408241885,-315.46351,0.00016438,2]
[351195698,1738408241894,-151.0,0.00016438,2]
[351195700,1738408241903,-315.46351,0.00016438,2]
[351195702,1738408241915,-151.0,0.00016438,2]
[351195704,1738408241924,-500.0,0.00016438,2]
[351195706,1738408241934,-315.46351,0.00016438,2]
[351195707,1738408241943,-315.46351,0.00016438,2]
[351195708,1738408241955,-315.46351,0.00016438,2]
[351195709,1738408241965,-315.46351,0.00016438,2]
[351195710,1738408241974,-315.46351,0.00016438,2]
[351195711,1738408241983,-315.46351,0.00016438,2]
[351195712,1738408241993,-500.0,0.00016438,2]
[351195713,1738408242002,-315.46351,0.00016438,2]
[351195714,1738408242011,-315.46351,0.00016438,2]
[351195715,1738408242020,-315.46351,0.00016438,2]
[351195716,1738408242029,-315.46351,0.00016438,2]
[351195717,1738408242039,-315.46351,0.00016438,2]
[351195718,1738408242048,-500.0,0.00016438,2]
[351195719,1738408242057,-315.46351,0.00016438,2]
[351195720,1738408242068,-315.46351,0.00016438,2]
[351195721,1738408242078,-500.0,0.00016438,2]
[351195722,1738408242086,-500.0,0.00016438,2]
[351195723,1738408242096,-500.0,0.00016438,2]
[351195724,1738408242105,-500.0,0.00016438,2]
[351195725,1738408242115,-500.0,0.00016438,2]